fUST/lending_fUST_20240110
["ID","MTS","AMOUNT","RATE_DAILY","PERIOD"]
[311031040,1704876646684,-500.0,0.00028767,2]
[311031041,1704876646693,-500.0,0.00028767,2]
[311031042,1704876646702,-500.0,0.00028767,2]
[311031043,1704876646711,-2546.06,0.00028767,2]
[311031044,1704876646721,-500.0,0.00028767,2]
[311031045,1704876646730,-500.0,0.00028767,2]
[311031046,1704876646739,-500.0,0.00028767,2]
[311031047,1704876646749,-938.82,0.00028767,2]
[311031048,1704876646759,-500.0,0.00028767,2]
[311031049,1704876646768,-846.29,0.00028767,2]
[311031050,1704876646778,-552.23,0.00028767,2]
[311031051,1704876646786,-500.0,0.00028767,5]
[311031052,1704876646795,-507.58,0.00028767,2]
[311031053,1704876646804,-500.0,0.00028767,2]
[311031054,1704876646813,-500.0,0.00028767,2]
[311031055,1704876646822,-3809.8,0.00028767,2]
[311031056,1704876646831,-500.0,0.00028767,2]
[311031057,1704876646840,-151.0,0.00028767,2]
[311031058,1704876646849,-151.0,0.00028767,2]
[311031059,1704876646858,-158.317879,0.00028767,2]
[311031060,1704876646868,-158.317879,0.00028767,2]
[311031061,1704876646878,-2172.16643462,0.000289,2]
[311031062,1704876646887,-543.07,0.00028904,2]
[311031063,1704876646897,-1351.02012021,0.00029,2]
[311031064,1704876646906,-1982.97164167,0.00029,2]
[311031065,1704876646915,-5999.99,0.00029,2]
[311031066,1704876646925,-6000.0,0.00029,2]
[311031067,1704876646934,-2000.0,0.00029,2]
[311031068,1704876646944,-200.0,0.00029,4]
[311031069,1704876646953,-1500.0,0.00029,2]
[311031070,1704876646962,-6000.0,0.00029,2]
[311031071,1704876646973,-2000.0,0.0002901,2]
[311031072,1704876646986,-2000.0,0.0002902,2]
[311031073,1704876646995,-2000.0,0.0002903,2]
[311031074,1704876647005,-1986.25,0.00029039,2]
[311031075,1704876647015,-1986.25,0.0002904,2]
[311031076,1704876647024,-2000.0,0.0002904,2]
[311031077,1704876647034,-746.34,0.00029041,2]
[311031078,1704876647043,-500.0,0.00029041,2]
[311031079,1704876647054,-1351.62,0.00029041,2]
[311031080,1704876647064,-500.0,0.00029041,2]
[311031081,1704876647074,-660.59,0.00029041,2]
[311031082,1704876647084,-316.15933812,0.00029041,2]
[311031083,1704876647093,-500.0,0.00029041,2]
[311031084,1704876647103,-575.84,0.00029041,2]
[311031085,1704876647114,-500.0,0.00029041,2]
[311031086,1704876647123,-533.73,0.00029041,2]
[311031087,1704876647133,-936.01,0.00029041,2]
[311031088,1704876647142,-500.0,0.00029041,2]
[311031089,1704876647152,-500.0,0.00029041,2]
[311031090,1704876647162,-500.0,0.00029041,2]
[311031091,1704876647171,-500.0,0.00029041,2]
[311031092,1704876647181,-483.35962442,0.00029041,2]
[311031093,1704876647194,-681.12,0.00029041,2]
[311031094,1704876647203,-500.0,0.00029041,2]
[311031095,1704876647213,-542.35,0.00029041,2]
[311031096,1704876647223,-500.0,0.00029041,2]
[311031097,1704876647232,-500.0,0.00029041,2]
[311031098,1704876647241,-392.95669236,0.00029041,2]
[311031099,1704876647250,-1435.89,0.00029041,2]
[311031100,1704876647260,-1700.86,0.00029041,2]
[311031101,1704876647270,-500.0,0.00029041,2]
[311031102,1704876647278,-1728.88,0.00029041,2]
[311031103,1704876647288,-500.0,0.00029041,2]
[311031104,1704876647297,-451.32622633,0.00029041,2]
[311031105,1704876647306,-461.93363699,0.00029041,2]
[311031106,1704876647315,-555.76,0.00029041,2]
[311031107,1704876647324,-500.0,0.00029041,2]
[311031108,1704876647334,-1429.94,0.00029041,2]
[311031109,1704876647342,-500.0,0.00029041,2]
[311031110,1704876647351,-500.0,0.00029041,2]
[311031111,1704876647360,-500.0,0.00029041,2]
[311031112,1704876647370,-519.8,0.00029041,2]
[311031113,1704876647379,-812.78,0.00029041,2]
[311031114,1704876647389,-500.0,0.00029041,2]
[311031115,1704876647397,-500.0,0.00029041,2]
[311031116,1704876647406,-500.0,0.00029041,2]
[311031117,1704876647415,-3473.97,0.00029041,2]
[311031118,1704876647424,-500.0,0.00029041,2]
[311031119,1704876647433,-500.0,0.00029041,2]
[311031120,1704876647442,-500.0,0.00029041,2]
[311031121,1704876647451,-500.0,0.00029041,2]
[311031122,1704876647460,-500.0,0.00029041,2]
[311031123,1704876647468,-500.0,0.00029041,2]
[311031124,1704876647478,-500.0,0.00029041,2]
[311031125,1704876647487,-500.0,0.00029041,2]
[311031126,1704876647496,-510.05,0.00029041,2]
[311031127,1704876647506,-1158.26,0.00029041,2]
[311031128,1704876647514,-500.0,0.00029041,2]
[311031129,1704876647523,-500.0,0.00029041,2]
[311031130,1704876647533,-500.0,0.00029041,2]
[311031131,1704876647542,-500.0,0.00029041,2]
[311031132,1704876647551,-500.0,0.00029041,2]
[311031133,1704876647560,-1618.19,0.00029041,2]
[311031134,1704876647569,-1223.61,0.00029041,2]
[311031135,1704876647578,-500.0,0.00029041,2]
[311031136,1704876647674,-1391.29,0.00029041,2]
[311031137,1704876647684,-655.77,0.00029041,2]
[311031138,1704876647695,-500.0,0.00029041,2]
[311031139,1704876647704,-1874.74,0.00029041,2]
[311031140,1704876647713,-500.0,0.00029041,2]
[311031141,1704876647722,-8156.1,0.00029041,2]
[311031142,1704876647731,-500.0,0.00029041,2]
[311031143,1704876647740,-5581.65,0.00029041,2]
[311031144,1704876647749,-1928.17,0.00029041,2]
[311031145,1704876647761,-500.0,0.00029041,2]
[311031146,1704876647770,-3468.22,0.00029041,2]
[311031147,1704876647780,-500.0,0.00029041,2]
[311031148,1704876647789,-44820.18,0.00029041,2]
[311031149,1704876647798,-624.43807266,0.00029041,2]
[311031150,1704876647807,-7785.16,0.00029041,2]
[311031151,1704876647817,-500.0,0.00029041,2]
[311031152,1704876647826,-1756.03,0.00029041,2]
[311031153,1704876647835,-673.79,0.00029041,2]
[311031154,1704876647845,-506.84,0.00029041,2]
[311031155,1704876647857,-5754.88,0.00029041,2]
[311031156,1704876647866,-500.0,0.00029041,2]
[311031157,1704876647876,-2856.77,0.00029041,2]
[311031158,1704876647885,-500.0,0.00029041,2]
[311031159,1704876647895,-500.0,0.00029041,2]
[311031160,1704876647904,-2094.23,0.00029041,2]
[311031161,1704876647914,-500.0,0.00029041,2]
[311031162,1704876647923,-500.0,0.00029041,2]
[311031163,1704876647932,-16804.81,0.00029041,2]
[311031164,1704876647941,-500.0,0.00029041,2]
[311031165,1704876647951,-4508.82,0.00029041,2]
[311031166,1704876647960,-500.0,0.00029041,2]
[311031167,1704876647971,-1366.05,0.00029041,2]
[311031168,1704876647980,-543.07,0.00029041,2]
[311031169,1704876647989,-1998.94,0.00029041,2]
[311031170,1704876648000,-500.0,0.00029041,2]
[311031171,1704876648010,-500.0,0.00029041,2]
[311031172,1704876648019,-500.0,0.00029041,2]
[311031173,1704876648028,-2546.06,0.00029041,2]
[311031174,1704876648037,-500.0,0.00029041,2]
[311031175,1704876648046,-500.0,0.00029041,2]
[311031176,1704876648055,-500.0,0.00029041,2]
[311031177,1704876648064,-938.82,0.00029041,2]
[311031178,1704876648074,-500.0,0.00029041,2]
[311031179,1704876648083,-846.29,0.00029041,2]
[311031180,1704876648092,-552.23,0.00029041,2]
[311031181,1704876648102,-500.0,0.00029041,5]
[311031182,1704876648111,-507.58,0.00029041,2]
[311031183,1704876648122,-500.0,0.00029041,2]
[311031184,1704876648132,-500.0,0.00029041,2]
[311031185,1704876648141,-3809.8,0.00029041,2]
[311031186,1704876648150,-500.0,0.00029041,2]
[311031187,1704876648160,-267.504478,0.00029041,2]
[311031188,1704876648169,-158.317879,0.00029041,2]
[311031189,1704876648178,-158.317879,0.00029041,2]
[311031190,1704876648187,-2000.0,0.0002905,2]
[311031191,1704876648196,-1986.25,0.00029059,2]
[311031192,1704876648205,-2000.0,0.0002906,2]
[311031193,1704876648215,-2000.0,0.0002907,2]
[311031194,1704876648224,-2000.0,0.0002908,2]
[311031195,1704876648232,-2000.0,0.0002909,2]
[311031196,1704876648241,-2000.0,0.000291,2]
[311031197,1704876648251,-2000.0,0.0002911,2]
[311031198,1704876648260,-2000.0,0.0002912,2]
[311031199,1704876648270,-2000.0,0.0002913,2]
[311031200,1704876648279,-6000.0,0.0002914,2]
[311031201,1704876648288,-2000.0,0.0002914,2]
[311031202,1704876648297,-426.88,0.0002914,2]
[311031203,1704876648306,-2000.0,0.0002915,2]
[311031204,1704876648315,-158.317879,0.0002916,2]
[311031205,1704876648324,-158.317879,0.0002916,2]
[311031206,1704876648333,-2000.0,0.0002916,2]
[311031207,1704876648342,-2000.0,0.0002917,2]
[311031208,1704876648351,-543.07,0.00029178,2]
[311031209,1704876648360,-2000.0,0.0002918,2]
[311031210,1704876648370,-2079.751713,0.0002919,2]
[311031211,1704876648379,-816.631,0.00029266,4]
[311031212,1704876648389,-816.631,0.00029266,4]
[311031213,1704876648399,-816.632,0.00029266,4]
[311031214,1704876648408,-816.631,0.00029266,4]
[311031215,1704876648417,-816.632,0.00029266,4]
[311031216,1704876648427,-1986.25,0.00029313,2]
[311031217,1704876648436,-1986.25,0.00029314,2]
[311031218,1704876648445,-746.34,0.00029315,2]
[311031219,1704876648455,-500.0,0.00029315,2]
[311031220,1704876648465,-1351.62,0.00029315,2]
[311031221,1704876648474,-272.45921452,0.00029315,2]
[311031222,1704876648483,-660.59,0.00029315,2]
[311031223,1704876648492,-500.0,0.00029315,2]
[311031224,1704876648501,-575.84,0.00029315,2]
[311031225,1704876648510,-500.0,0.00029315,2]
[311031226,1704876648519,-533.73,0.00029315,2]
[311031227,1704876648528,-936.01,0.00029315,2]
[311031228,1704876648537,-500.0,0.00029315,2]
[311031229,1704876648546,-351.97873443,0.00029315,2]
[311031230,1704876648555,-500.0,0.00029315,2]
[311031231,1704876648564,-681.12,0.00029315,2]
[311031232,1704876648574,-500.0,0.00029315,2]
[311031233,1704876648584,-542.35,0.00029315,2]
[311031234,1704876648594,-500.0,0.00029315,2]
[311031235,1704876648605,-500.0,0.00029315,2]
[311031236,1704876648614,-1435.89,0.00029315,2]
[311031237,1704876648623,-1700.86,0.00029315,2]
[311031238,1704876648633,-500.0,0.00029315,2]
[311031239,1704876648643,-1728.88,0.00029315,2]
[311031240,1704876648653,-500.0,0.00029315,2]
[311031241,1704876648664,-555.76,0.00029315,2]
[311031242,1704876648674,-500.0,0.00029315,2]
[311031243,1704876648683,-1429.94,0.00029315,2]
[311031244,1704876648693,-568.3886669,0.00029315,2]
[311031245,1704876648702,-500.0,0.00029315,2]
[311031246,1704876648711,-500.0,0.00029315,2]
[311031247,1704876648720,-519.8,0.00029315,2]
[311031248,1704876648729,-812.78,0.00029315,2]
[311031249,1704876648738,-500.0,0.00029315,2]
[311031250,1704876648748,-500.0,0.00029315,2]
[311031251,1704876648757,-500.0,0.00029315,2]
[311031252,1704876648767,-3473.97,0.00029315,2]
[311031253,1704876648776,-500.0,0.00029315,2]
[311031254,1704876648785,-500.0,0.00029315,2]
[311031255,1704876648794,-500.0,0.00029315,2]
[311031256,1704876648803,-500.0,0.00029315,2]
[311031257,1704876648812,-500.0,0.00029315,2]
[311031258,1704876648821,-500.0,0.00029315,2]
[311031259,1704876648830,-500.0,0.00029315,2]
[311031260,1704876648840,-500.0,0.00029315,2]
[311031261,1704876648849,-510.05,0.00029315,2]
[311031262,1704876648859,-1158.26,0.00029315,2]
[311031263,1704876648870,-500.0,0.00029315,2]
[311031264,1704876648880,-500.0,0.00029315,2]
[311031265,1704876648889,-500.0,0.00029315,2]
[311031266,1704876648899,-500.0,0.00029315,2]
[311031267,1704876648908,-500.0,0.00029315,2]
[311031268,1704876648917,-1618.19,0.00029315,2]
[311031269,1704876648927,-1223.61,0.00029315,2]
[311031270,1704876648936,-500.0,0.00029315,2]
[311031271,1704876648946,-1391.29,0.00029315,2]
[311031272,1704876648955,-655.77,0.00029315,2]
[311031273,1704876648965,-500.0,0.00029315,2]
[311031274,1704876648975,-1874.74,0.00029315,2]
[311031275,1704876648986,-500.0,0.00029315,2]
[311031276,1704876648995,-8156.1,0.00029315,2]
[311031277,1704876649005,-500.0,0.00029315,2]
[311031278,1704876649015,-5581.65,0.00029315,2]
[311031279,1704876649024,-1928.17,0.00029315,2]
[311031280,1704876649033,-500.0,0.00029315,2]
[311031281,1704876649043,-3468.22,0.00029315,2]
[311031282,1704876649053,-500.0,0.00029315,2]
[311031283,1704876649270,-44820.18,0.00029315,2]
[311031284,1704876649279,-7785.16,0.00029315,2]
[311031285,1704876649289,-500.0,0.00029315,2]
[311031286,1704876649299,-1756.03,0.00029315,2]
[311031287,1704876649309,-673.79,0.00029315,2]
[311031288,1704876649319,-506.84,0.00029315,2]
[311031289,1704876649329,-5754.88,0.00029315,2]
[311031290,1704876649338,-500.0,0.00029315,2]
[311031291,1704876649348,-2856.77,0.00029315,2]
[311031292,1704876649357,-500.0,0.00029315,2]
[311031293,1704876649366,-500.0,0.00029315,2]
[311031294,1704876649375,-2094.23,0.00029315,2]
[311031295,1704876649384,-500.0,0.00029315,2]
[311031296,1704876649394,-500.0,0.00029315,2]
[311031297,1704876649403,-16804.81,0.00029315,2]
[311031298,1704876649412,-500.0,0.00029315,2]
[311031299,1704876649421,-4508.82,0.00029315,2]
[311031300,1704876649431,-500.0,0.00029315,2]
[311031301,1704876649440,-1366.05,0.00029315,2]
[311031302,1704876649450,-1998.94,0.00029315,2]
[311031303,1704876649458,-543.07,0.00029315,2]
[311031304,1704876649467,-500.0,0.00029315,2]
[311031305,1704876649476,-500.0,0.00029315,2]
[311031306,1704876649486,-500.0,0.00029315,2]
[311031307,1704876649495,-2546.06,0.00029315,2]
[311031308,1704876649504,-500.0,0.00029315,2]
[311031309,1704876649513,-500.0,0.00029315,2]
[311031310,1704876649522,-500.0,0.00029315,2]
[311031311,1704876649531,-938.82,0.00029315,2]
[311031312,1704876649540,-500.0,0.00029315,2]
[311031313,1704876649549,-846.29,0.00029315,2]
[311031314,1704876649558,-552.23,0.00029315,2]
[311031315,1704876649567,-500.0,0.00029315,5]
[311031316,1704876649576,-507.58,0.00029315,2]
[311031317,1704876649585,-500.0,0.00029315,2]
[311031318,1704876649594,-500.0,0.00029315,2]
[311031319,1704876649603,-3809.8,0.00029315,2]
[311031320,1704876649612,-500.0,0.00029315,2]
[311031321,1704876649623,-150.87929656,0.00029421,7]
[311031322,1704876649633,-543.07,0.00029452,2]
[311031323,1704876649642,-620.00000006,0.0002947,2]
[311031324,1704876649651,-1000.0,0.00029473,2]
[311031325,1704876649661,-1000.0,0.00029487,2]
[311031326,1704876649670,-1986.25,0.00029499,2]
[311031327,1704876649679,-1986.25,0.00029499,2]
[311031328,1704876649688,-1986.25,0.00029499,2]
[311031329,1704876649697,-1986.25,0.00029499,2]
[311031330,1704876649706,-1986.31317931,0.00029499,2]
[311031331,1704876649717,-13944.34285161,0.000295,30]
[311031332,1704876649727,-158.317879,0.000295,2]
[311031333,1704876649736,-158.317879,0.000295,2]
[311031334,1704876649747,-1000.0,0.00029528,2]
[311031335,1704876649756,-1000.0,0.00029542,2]
[311031336,1704876649765,-1000.0,0.00029548,2]
[311031337,1704876649861,-1000.0,0.0002956,2]
[311031338,1704876649874,-1000.0,0.00029561,2]
[311031339,1704876649884,-922.14010784,0.0002957,2]
[311031340,1704876649893,-1000.0,0.00029574,2]
[311031341,1704876649903,-1000.0,0.0002958,2]
[311031342,1704876649912,-3313.2630203,0.00029589,2]
[311031343,1704876649921,-305.01426273,0.00029589,2]
[311031344,1704876649931,-763.40324942,0.00029589,2]
[311031345,1704876649940,-184.46633966,0.00029589,2]
[311031346,1704876649950,-155.0,0.00029589,2]
[311031347,1704876649959,-10189.91930689,0.00029589,2]
[311031348,1704876649969,-746.34,0.00029589,2]
[311031349,1704876649978,-500.0,0.00029589,2]
[311031350,1704876649988,-1351.62,0.00029589,2]
[311031351,1704876649997,-660.59,0.00029589,2]
[311031352,1704876650006,-500.0,0.00029589,2]
[311031353,1704876650015,-575.84,0.00029589,2]
[311031354,1704876650024,-500.0,0.00029589,2]
[311031355,1704876650034,-533.73,0.00029589,2]
[311031356,1704876650043,-936.01,0.00029589,2]
[311031357,1704876650053,-361.14165218,0.00029589,2]
[311031358,1704876650062,-300.0,0.00029589,2]
[311031359,1704876650071,-681.12,0.00029589,2]
[311031360,1704876650081,-500.0,0.00029589,2]
[311031361,1704876650091,-542.35,0.00029589,2]
[311031362,1704876650102,-500.0,0.00029589,2]
[311031363,1704876650113,-500.0,0.00029589,2]
[311031364,1704876650125,-1435.89,0.00029589,2]
[311031365,1704876650135,-1700.86,0.00029589,2]
[311031366,1704876650146,-500.0,0.00029589,2]
[311031367,1704876650157,-1728.88,0.00029589,2]
[311031368,1704876650168,-500.0,0.00029589,2]
[311031369,1704876650179,-555.76,0.00029589,2]
[311031370,1704876650189,-500.0,0.00029589,2]
[311031371,1704876650198,-1429.94,0.00029589,2]
[311031372,1704876650207,-500.0,0.00029589,2]
[311031373,1704876650216,-500.0,0.00029589,2]
[311031374,1704876650225,-519.8,0.00029589,2]
[311031375,1704876650234,-812.78,0.00029589,2]
[311031376,1704876650243,-500.0,0.00029589,2]
[311031377,1704876650252,-500.0,0.00029589,2]
[311031378,1704876650261,-500.0,0.00029589,2]
[311031379,1704876650270,-3473.97,0.00029589,2]
[311031380,1704876650279,-500.0,0.00029589,2]
[311031381,1704876650288,-500.0,0.00029589,2]
[311031382,1704876650297,-500.0,0.00029589,2]
[311031383,1704876650306,-534.63983472,0.00029589,2]
[311031384,1704876650315,-500.0,0.00029589,2]
[311031385,1704876650324,-500.0,0.00029589,2]
[311031386,1704876650332,-500.0,0.00029589,2]
[311031387,1704876650339,-500.0,0.00029589,2]
[311031388,1704876650347,-510.05,0.00029589,2]
[311031389,1704876650356,-1158.26,0.00029589,2]
[311031390,1704876650363,-500.0,0.00029589,2]
[311031391,1704876650372,-500.0,0.00029589,2]
[311031392,1704876650380,-500.0,0.00029589,2]
[311031393,1704876650387,-330.22912445,0.00029589,2]
[311031394,1704876650395,-500.0,0.00029589,2]
[311031395,1704876650403,-1618.19,0.00029589,2]
[311031396,1704876650411,-1223.61,0.00029589,2]
[311031397,1704876650419,-500.0,0.00029589,2]
[311031398,1704876650427,-1391.29,0.00029589,2]
[311031399,1704876650436,-655.77,0.00029589,2]
[311031400,1704876650444,-317.2237177,0.00029589,2]
[311031401,1704876650451,-1874.74,0.00029589,2]
[311031402,1704876650460,-500.0,0.00029589,2]
[311031403,1704876650467,-8156.1,0.00029589,2]
[311031404,1704876650476,-500.0,0.00029589,2]
[311031405,1704876650484,-5581.65,0.00029589,2]
[311031406,1704876650493,-1928.17,0.00029589,2]
[311031407,1704876650501,-500.0,0.00029589,2]
[311031408,1704876650510,-3468.22,0.00029589,2]
[311031409,1704876650517,-500.0,0.00029589,2]
[311031410,1704876650525,-44820.18,0.00029589,2]
[311031411,1704876650533,-7785.16,0.00029589,2]
[311031412,1704876650541,-500.0,0.00029589,2]
[311031413,1704876650549,-1756.03,0.00029589,2]
[311031414,1704876650558,-673.79,0.00029589,2]
[311031415,1704876650567,-506.84,0.00029589,2]
[311031416,1704876650576,-5754.88,0.00029589,2]
[311031417,1704876650586,-500.0,0.00029589,2]
[311031418,1704876650596,-2856.77,0.00029589,2]
[311031419,1704876650605,-500.0,0.00029589,2]
[311031420,1704876650615,-500.0,0.00029589,2]
[311031421,1704876650625,-2094.23,0.00029589,2]
[311031422,1704876650634,-500.0,0.00029589,2]
[311031423,1704876650644,-500.0,0.00029589,2]
[311031424,1704876650653,-16804.81,0.00029589,2]
[311031425,1704876650663,-500.0,0.00029589,2]
[311031426,1704876650673,-4508.82,0.00029589,2]
[311031427,1704876650682,-209.37161532,0.00029589,2]
[311031428,1704876650692,-1366.05,0.00029589,2]
[311031429,1704876650702,-1998.94,0.00029589,2]
[311031430,1704876650712,-543.07,0.00029589,2]
[311031431,1704876650721,-500.0,0.00029589,2]
[311031432,1704876650731,-500.0,0.00029589,2]
[311031433,1704876650740,-540.32080062,0.00029589,2]
[311031434,1704876650749,-2546.06,0.00029589,2]
[311031435,1704876650758,-500.0,0.00029589,2]
[311031436,1704876650767,-500.0,0.00029589,2]
[311031437,1704876650776,-500.0,0.00029589,2]
[311031438,1704876650786,-500.0,0.00029589,2]
[311031439,1704876650795,-938.82,0.00029589,2]
[311031440,1704876650804,-846.29,0.00029589,2]
[311031441,1704876650813,-552.23,0.00029589,2]
[311031442,1704876650822,-500.0,0.00029589,5]
[311031443,1704876650831,-507.58,0.00029589,2]
[311031444,1704876650841,-500.0,0.00029589,2]
[311031445,1704876650850,-500.0,0.00029589,2]
[311031446,1704876650859,-3809.8,0.00029589,2]
[311031447,1704876650869,-500.0,0.00029589,2]
[311031448,1704876650878,-1000.0,0.00029596,2]
[311031449,1704876650888,-1000.0,0.00029603,2]
[311031450,1704876650897,-1000.0,0.00029613,2]
[311031451,1704876650907,-1000.0,0.00029616,2]
[311031452,1704876650916,-1000.0,0.00029627,2]
[311031453,1704876650925,-1000.0,0.00029632,2]
[311031454,1704876650934,-1000.0,0.00029648,2]
[311031455,1704876650943,-1000.0,0.00029663,2]
[311031456,1704876650952,-1000.0,0.00029673,2]
[311031457,1704876650962,-1000.0,0.00029676,2]
[311031458,1704876650972,-1000.0,0.00029689,2]
[311031459,1704876650987,-1000.0,0.0002969,2]
[311031460,1704876650996,-1000.0,0.0002969,2]
[311031461,1704876651006,-158.317879,0.0002969,2]
[311031462,1704876651015,-158.317879,0.0002969,2]
[311031463,1704876651025,-1000.0,0.00029718,2]
[311031464,1704876651034,-1000.0,0.00029723,2]
[311031465,1704876651044,-1000.0,0.00029724,2]
[311031466,1704876651053,-543.07,0.00029726,2]
[311031467,1704876651064,-1000.0,0.00029729,2]
[311031468,1704876651074,-1000.0,0.00029754,2]
[311031469,1704876651084,-19240.82215627,0.0002979,7]
[311031470,1704876651142,-930.00192684,0.0002979,7]
[311031471,1704876651155,-499.88380261,0.0002979,7]
[311031472,1704876651176,-1335.51041962,0.00027387,3]
[311031473,1704876651188,-694.57287739,0.00027387,3]
[311031474,1704876651199,-361.048888,0.00027387,3]
[311031662,1704877027916,200.0,0.00022985,7]
[311031712,1704877554099,-154.87609912,0.00019657,3]
[311031713,1704877554120,-177.328897,0.00019658,2]
[311031714,1704877554142,-361.048888,0.00019943,2]
[311031715,1704877554163,-2994.25505405,0.0002,2]
[311031716,1704877554183,-154.87609912,0.00020992,2]
[311031717,1704877554203,-1195.09669838,0.00020993,2]
[311031718,1704877554223,-236.79527182,0.00020993,2]
[311031719,1704877554243,-266.19065175,0.00020994,2]
[311031720,1704877554264,-853.57612089,0.00020995,2]
[311031721,1704877554285,-469.64064105,0.00020997,2]
[311031722,1704877554305,-38058.34913999,0.00020999,2]
[311031723,1704877554325,-14321.05377755,0.00021,2]
[311031724,1704877554344,-1545.49856196,0.00021,2]
[311031725,1704877554364,-193.95210286,0.00021,2]
[311031726,1704877554385,-326.73090334,0.00021,2]
[311031727,1704877554406,-166.666666,0.00021918,2]
[311031728,1704877554429,-5902.72,0.0002196,3]
[311031729,1704877554450,-10304.92,0.0002199,3]
[311031730,1704877554469,-292.83058016,0.00022,4]
[311031731,1704877554489,-156.86767994,0.00022,2]
[311031732,1704877554508,-668.10631608,0.00022,2]
[311031733,1704877554531,-3931.75997852,0.00022,2]
[311031734,1704877554551,-4917.8600325,0.00022,2]
[311031735,1704877554571,-166.666666,0.00022431,2]
[311031736,1704877554591,-166.666666,0.00022944,2]
[311031737,1704877554611,-200.0,0.00022985,2]
[311031738,1704877554630,-2079.63666476,0.00022985,2]
[311031739,1704877554650,-1821.85168105,0.00022985,2]
[311031740,1704877554669,-154.8915759,0.00022985,2]
[311031741,1704877554689,-300.0,0.00022985,2]
[311031742,1704877554710,-660.43902621,0.00023,2]
[311031752,1704877595093,-1587.23277287,0.00022985,2]
[311031757,1704877627085,-200.0,0.00022985,2]
[311031758,1704877627105,-1432.64830088,0.00023,2]
[311031759,1704877627125,-2079.63666476,0.00023,2]
[311031760,1704877627145,-154.87609912,0.00023,2]
[311031761,1704877627164,-300.0,0.00023,2]
[311031762,1704877627184,-1821.85168105,0.00023,2]
[311031763,1704877627204,-166.666666,0.00023456,2]
[311031764,1704877627224,-166.666666,0.00023969,2]
[311031765,1704877627246,-9920.80434626,0.00023997,2]
[311031766,1704877627266,-2271.27556916,0.00023998,2]
[311031767,1704877627285,-2293.16748545,0.00024,2]
[311031768,1704877627304,-3064.8,0.000244,10]
[311031769,1704877627325,-154.87609912,0.00024459,4]
[311031770,1704877627347,-166.666666,0.00024482,2]
[311031771,1704877627368,-154.87609912,0.00025637,2]
[311031772,1704877627393,-236.79527182,0.00025637,2]
[311031773,1704877627416,-2994.25505405,0.00025637,2]
[311031774,1704877627437,-156.86767994,0.00025637,2]
[311031775,1704877627459,-614.01289661,0.00025638,2]
[311031776,1704877627481,-3000.0,0.00025639,2]
[311031777,1704877627504,-4711.08145103,0.0002564,2]
[311031778,1704877627530,-810.54636602,0.00025641,2]
[311031779,1704877627552,-525.91402641,0.00026999,2]
[311031780,1704877627574,-733.25771754,0.00027078,2]
[311031781,1704877627603,-1391.6033628,0.00027079,2]
[311031782,1704877627630,-8587.43,0.00027168,3]
[311031783,1704877627651,-7156.2,0.00027168,3]
[311031784,1704877627676,-5963.5,0.00027168,3]
[311031785,1704877627696,-4917.8600325,0.00027176,2]
[311031786,1704877627717,-1587.23277287,0.00027176,2]
[311031787,1704877627737,-326.73090334,0.00027176,2]
[311031788,1704877627760,-266.19065175,0.00027177,2]